bitfinex-derivatives/quotes_SOLF0:USTF0_20241218
["timestamp","ask_amount","ask_price","bid_price","bid_amount"]
[1734527484183,2.3065,216.83,216.77,11.25468312]
[1734527484488,2.2,216.86,216.72,1.4707]
[1734527484688,2.3072,216.77,216.72,3.7783]
[1734527485388,2.2,216.8,216.74,2.3074]
[1734527485389,2.307,216.79,216.74,2.3074]
[1734527486091,2.2,216.8,216.72,1.4707]
[1734527486285,11.25468312,216.87,216.74,11.25468312]
[1734527486286,2.2,216.83,216.74,11.25468312]
[1734527486994,2.2,216.83,216.77,2.3071]
[1734527487389,2.2,216.83,216.74,11.25468312]
[1734527487891,2.3065,216.84,216.79,2.3068]
[1734527488187,2.2,216.86,216.77,11.25468312]
[1734527490482,2.3065,216.84,216.8,2.3068]
[1734527490682,2.3065,216.84,216.77,11.25468312]
[1734527490885,2.2,216.86,216.77,11.25468312]
[1734527492193,2.3064,216.84,216.81,2.3067]
[1734527493191,2.3064,216.84,216.77,11.25468312]
[1734527493386,2.2,216.86,216.72,1.4707]
[1734527493592,2.2,216.86,216.72,12.72538312]
[1734527493893,2.3069,216.79,216.75,2.3073]
[1734527494292,2.2,216.85,216.75,11.25468312]
[1734527494490,2.2,216.85,216.8,2.3068]
[1734527494491,2.3065,216.83,216.8,2.3068]
[1734527494691,2.3065,216.83,216.75,11.25468312]
[1734527494997,2.2,216.85,216.75,11.25468312]
[1734527495288,2.2,216.85,216.72,1.4707]
[1734527495289,2.2,216.88,216.78,11.25468312]
[1734527495491,2.2,216.88,216.79,1.4973]
[1734527496391,11.25468312,216.94,216.83,2.3065]
[1734527496695,2.2,216.93,216.83,2.3065]
[1734527497192,5.41327962,216.93,216.79,1.4973]
[1734527497496,2.2,216.92,216.84,2.3064]
[1734527497898,2.3059,216.89,216.84,2.3064]
[1734527498297,2.2,216.92,216.84,2.3064]
[1734527498498,2.2,216.92,216.8,1.5731]
[1734527498899,2.2,216.92,216.82,2.3066]
[1734527498900,2.3061,216.87,216.82,2.3066]
[1734527499092,5.41327962,216.93,216.81,11.25468312]
[1734527499295,2.2,216.91,216.81,11.25468312]
[1734527499495,4.5057,216.91,216.86,2.3061]
[1734527499994,4.5057,216.91,216.84,11.25468312]
[1734527499995,2.3057,216.91,216.84,11.25468312]
[1734527500702,2.3057,216.91,216.86,2.3062]
[1734527501103,5.44768184,216.98,216.87,11.25468312]
[1734527501295,200.49690722,217.03,216.9,11.25468312]
[1734527501495,2.2,217.0,216.9,11.25468312]
[1734527502704,2.305,216.97,216.92,2.3054]
[1734527503002,2.2,217.0,216.9,11.25468312]
[1734527503299,2.3049,216.98,216.93,2.3053]
[1734527503504,2.2,217.0,216.9,11.25468312]
[1734527504202,2.305,216.97,216.92,2.3055]
[1734527504599,2.2,217.0,216.9,11.25468312]
[1734527504805,2.3049,216.98,216.93,2.3053]
[1734527505306,2.3047,217.0,216.95,2.3052]
[1734527505504,25.15468312,217.14,216.97,11.25468312]
[1734527505505,452.81987272,217.09,216.97,11.25468312]
[1734527505698,2.2,217.08,216.97,11.25468312]
[1734527505901,2.2,217.08,217.0,11.25468312]
[1734527506302,2.3039,217.07,217.01,2.3045]
[1734527507303,2.304,217.06,217.01,2.3045]
[1734527508208,2.304,217.07,217.02,2.3045]
[1734527508710,2.304,217.07,217.0,11.25468312]
[1734527509106,2.2,217.09,217.01,2.3046]
[1734527509304,2.3041,217.05,217.0,11.25468312]
[1734527509499,2.2,217.09,217.0,11.25468312]
[1734527509703,2.2,217.09,217.01,2.3046]
[1734527509905,2.3041,217.06,217.0,11.25468312]
[1734527510306,2.3042,217.05,217.0,13.55938312]
[1734527510509,2.3042,217.05,217.0,11.25468312]
[1734527510906,2.2,217.09,217.0,11.25468312]
[1734527511102,189.2422241,217.15,217.06,11.25468312]
[1734527511606,2.3035,217.12,217.06,13.55868312]
[1734527512003,2.3032,217.15,217.08,2.3037]
[1734527512312,5.3985762,217.17,217.08,2.3037]
[1734527512609,2.3034,217.12,217.07,2.3039]
[1734527513310,2.3034,217.12,217.06,11.25468312]
[1734527514415,2.3034,217.12,217.06,13.55868312]
[1734527515312,2.3034,217.12,217.07,2.3039]
[1734527516015,2.3034,217.12,217.06,13.55868312]
[1734527516416,2.3038,217.08,217.06,11.25468312]
[1734527516613,2.2,217.14,217.06,11.25468312]
[1734527517010,2.3036,217.1,217.06,11.25468312]
[1734527517214,2.2,217.14,217.09,11.25468312]
[1734527517416,11.25468312,217.21,217.09,11.25468312]
[1734527517712,11.25468312,217.24,217.1,2.3036]
[1734527517905,2.2,217.23,217.1,5.3787]
[1734527518105,2.3031,217.15,217.1,5.3787]
[1734527518812,2.3033,217.14,217.1,3.0751]
[1734527519013,2.2,217.18,217.09,11.25468312]
[1734527519210,2.2,217.18,217.08,2.2]
[1734527519611,2.3035,217.12,217.08,2.2]
[1734527520216,2.3033,217.13,217.08,4.5038]
[1734527520713,2.2,217.18,217.08,2.2]
[1734527521321,2.3034,217.13,217.08,2.2]
[1734527521514,2.2,217.18,217.06,11.25468312]
[1734527521714,13.45468312,217.18,217.06,11.25468312]
[1734527522720,2.2,217.18,217.06,11.25468312]
[1734527522924,2.2,217.18,217.09,11.25468312]
[1734527523223,2.2,217.18,217.09,13.55838312]
[1734527523625,2.303,217.16,217.09,13.55838312]
[1734527523823,2.2,217.18,217.09,13.55838312]
[1734527525322,15.3904,217.22,217.13,2.3033]
[1734527525323,1.4904,217.22,217.13,2.3033]
[1734527525522,2.2,217.22,217.12,11.25468312]
[1734527526121,2.3027,217.19,217.13,2.3032]
[1734527526323,2.2,217.22,217.12,11.25468312]
[1734527526527,2.2,217.22,217.15,11.25468312]
[1734527526725,203.63870722,217.28,217.15,11.25468312]
[1734527526930,3.1418,217.28,217.15,11.25468312]
[1734527527224,2.3021,217.25,217.19,2.3026]
[1734527527526,2.3021,217.25,217.18,11.25468312]
[1734527528225,2.2,217.26,217.21,2.3024]
[1734527528528,2.2,217.29,217.21,11.25468312]
[1734527528930,2.302,217.25,217.21,11.25468312]
[1734527529631,2.3022,217.24,217.18,11.25468312]
[1734527529832,2.2,217.24,217.15,11.25468312]
[1734527530233,2.3024,217.22,217.15,11.25468312]
[1734527530429,2.2,217.24,217.15,11.25468312]
[1734527531031,2.2,217.24,217.15,13.55778312]
[1734527531731,2.3025,217.21,217.15,13.55778312]
[1734527531932,2.2,217.24,217.13,1.4522]
[1734527532234,2.3029,217.18,217.13,1.4522]
[1734527534435,2.2,217.24,217.13,1.4522]
[1734527534635,2.2,217.24,217.15,11.25468312]
[1734527535033,2.3025,217.21,217.15,13.55768312]
[1734527535733,2.2,217.24,217.18,11.25468312]
[1734527536134,2.2,217.27,217.18,11.25468312]
[1734527536332,2.2,217.27,217.2,2.3025]
[1734527536837,2.2,217.27,217.18,11.25468312]
[1734527538136,2.2,217.27,217.18,13.55738312]
[1734527539230,2.2,217.27,217.13,11.25468312]
[1734527539440,11.25468312,217.26,217.13,11.25468312]
[1734527539835,2.3024,217.22,217.13,11.25468312]
[1734527540042,2.2,217.21,217.13,11.25468312]
[1734527540337,2.3031,217.16,217.13,11.25468312]
[1734527540534,2.2,217.18,217.13,11.25468312]
[1734527541332,2.3031,217.15,217.13,11.25468312]
[1734527541541,2.2,217.18,217.13,11.25468312]
[1734527541734,2.3034,217.12,217.1,11.25468312]
[1734527541935,2.2,217.18,217.1,11.25468312]
[1734527542140,2.2,217.18,217.07,11.25468312]
[1734527542842,2.3037,217.1,217.07,11.25468312]
[1734527543147,2.3038,217.09,217.07,11.25468312]
[1734527543346,2.2,217.1,217.07,11.25468312]
[1734527543544,2.2,217.09,217.07,11.25468312]
[1734527543845,2.2,217.09,217.02,11.25468312]
[1734527544543,1.4986,217.16,217.02,11.25468312]
[1734527544743,2.2,217.15,217.02,11.25468312]
[1734527544942,3.7099,217.15,217.02,11.25468312]
[1734527545745,2.304,217.07,217.02,11.25468312]
[1734527546242,2.3041,217.06,217.02,11.25468312]
[1734527546441,2.2,217.08,217.0,80.07084]
[1734527546744,2.3041,217.06,217.0,80.07084]
[1734527547045,2.2,217.08,217.0,80.07084]
[1734527547242,2.2,217.09,217.02,11.25468312]
[1734527547440,2.3039,217.08,217.02,11.25468312]
[1734527547742,2.2,217.09,217.02,11.25468312]
[1734527548441,2.304,217.06,217.02,11.25468312]
[1734527548844,2.2,217.1,217.02,11.25468312]
[1734527549043,2.2,217.1,217.05,11.25468312]
[1734527549346,189.2422241,217.15,217.06,2.304]
[1734527549347,2.2,217.13,217.06,2.304]
[1734527549550,2.3035,217.11,217.06,2.304]
[1734527549742,2.3035,217.11,217.05,11.25468312]
[1734527550239,2.2,217.13,217.05,11.25468312]
[1734527550445,2.2,217.13,217.08,2.3038]
[1734527550644,189.2422241,217.18,217.05,11.25468312]
[1734527550843,2.2,217.17,217.05,11.25468312]
[1734527551342,189.2422241,217.18,217.08,11.25468312]
[1734527551549,2.2,217.17,217.08,11.25468312]
[1734527551847,2.3031,217.15,217.09,2.3036]
[1734527552043,2.2,217.17,217.08,11.25468312]
[1734527552249,2.2,217.17,217.06,4.6164]
[1734527552842,2.3032,217.15,217.1,2.3036]
[1734527553051,2.2,217.17,217.08,11.25468312]
[1734527554147,11.25468312,217.23,217.11,11.25468312]
[1734527554448,2.3029,217.18,217.12,2.3033]
[1734527555039,5.48378832,217.21,217.12,2.3033]
[1734527555441,5.48378832,217.21,217.11,2.3035]
[1734527555846,2.303,217.17,217.11,2.3035]
[1734527556442,5.48378832,217.21,217.12,2.3034]
[1734527556951,2.2,217.22,217.1,11.25468312]
[1734527557143,2.3029,217.17,217.11,2.3034]
[1734527558241,2.2,217.22,217.09,4.5037]
[1734527558445,2.2,217.22,217.09,2.3037]
[1734527558743,2.3031,217.16,217.09,2.3037]
[1734527559650,2.3031,217.15,217.09,2.3037]
[1734527560442,2.3031,217.15,217.07,13.45468312]
[1734527560648,2.3031,217.15,217.1,2.3036]
[1734527560950,2.3032,217.14,217.1,2.3036]
[1734527561252,2.2,217.19,217.1,11.25468312]
[1734527561747,2.2,217.19,217.12,2.3033]
[1734527562252,2.2,217.19,217.13,2.3032]
[1734527562544,4.5027,217.19,217.1,11.25468312]
[1734527562743,4.5027,217.19,217.13,2.3032]
[1734527563150,2.3029,217.17,217.1,11.25468312]
[1734527563349,2.2,217.19,217.13,2.3033]
[1734527563653,4.5027,217.19,217.13,2.3033]
[1734527564449,2.3028,217.18,217.13,2.3033]
[1734527564751,2.2,217.19,217.14,2.3032]
[1734527565453,2.3028,217.18,217.13,2.3033]
[1734527565648,2.2,217.19,217.1,11.25468312]
[1734527566046,2.2,217.19,217.09,2.2]
[1734527566244,2.2,217.19,217.14,7.17208425]
[1734527566645,2.3029,217.18,217.14,7.17208425]
[1734527567451,4.5027,217.19,217.14,9.47528425]
[1734527568053,4.5027,217.19,217.16,7.17208425]
[1734527568253,2.2,217.19,217.16,7.17208425]
[1734527568656,2.3026,217.2,217.16,7.17208425]
[1734527571658,2.3027,217.19,217.16,7.17208425]
[1734527572152,9.37208425,217.22,217.09,2.2]
[1734527572360,2.2,217.22,217.15,7.17208425]
[1734527572557,2.303,217.16,217.13,7.17208425]
[1734527573156,2.303,217.16,217.11,9.47558425]
[1734527573457,2.3031,217.15,217.11,9.47558425]
[1734527574256,2.2,217.22,217.13,7.17208425]
[1734527574460,2.2,217.22,217.16,7.17208425]
[1734527576259,2.3025,217.21,217.14,9.47528425]
[1734527576559,2.2,217.21,217.14,9.47528425]
[1734527577260,2.2,217.21,217.14,7.17208425]
[1734527577261,2.3027,217.19,217.14,7.17208425]
[1734527577463,2.2,217.21,217.16,7.17208425]
[1734527577853,2.3026,217.2,217.16,7.17208425]
[1734527578263,2.3026,217.2,217.16,9.47508425]
[1734527578662,2.3026,217.2,217.16,7.17208425]
[1734527579660,2.2,217.21,217.18,7.17208425]
[1734527580057,4.5025,217.21,217.18,7.17208425]
[1734527580261,4.5025,217.21,217.16,9.47508425]
[1734527580962,2.2,217.21,217.16,7.17208425]
[1734527581260,2.2,217.21,217.14,8.75468425]
[1734527581865,4.5025,217.21,217.15,2.303]
[1734527582558,4.5025,217.21,217.16,7.17208425]
[1734527582860,2.2,217.21,217.16,7.17208425]
[1734527583161,2.3026,217.2,217.16,7.17208425]
[1734527583766,2.2,217.21,217.14,1.5826]
[1734527583957,7.17208425,217.2,217.14,1.5826]
[1734527584865,2.303,217.17,217.14,1.5826]
[1734527585261,2.2,217.21,217.14,8.75468425]
[1734527585461,7.17208425,217.23,217.16,7.17208425]
[1734527585656,2.2,217.23,217.16,7.17208425]
[1734527585856,2.3025,217.21,217.17,2.3029]
[1734527586361,2.3026,217.2,217.16,9.47508425]
[1734527586563,2.3026,217.2,217.16,2.303]
[1734527586766,2.3026,217.2,217.16,9.47508425]
[1734527587167,2.3026,217.2,217.16,7.17208425]
[1734527587964,2.3027,217.19,217.16,7.17208425]
[1734527588663,7.17208425,217.21,217.14,1.5826]
[1734527588869,2.2,217.23,217.15,7.17208425]
[1734527588870,9.37208425,217.23,217.15,7.17208425]
[1734527589668,2.3027,217.19,217.15,7.17208425]
[1734527591170,9.37208425,217.23,217.15,7.17208425]
[1734527591472,2.3028,217.18,217.15,7.17208425]
[1734527597270,2.3027,217.19,217.15,9.47518425]
[1734527597471,9.37208425,217.23,217.14,8.75468425]
[1734527597874,7.17208425,217.21,217.12,7.17208425]
[1734527598274,2.3029,217.17,217.12,9.47548425]
[1734527599871,2.2,217.18,217.12,7.17208425]
[1734527600276,2.2,217.18,217.15,7.17208425]
[1734527601375,2.2,217.2,217.15,7.17208425]
[1734527601569,2.3028,217.18,217.15,7.17208425]
[1734527602876,2.2,217.2,217.15,7.17208425]
[1734527603078,2.2,217.2,217.15,9.47508425]
[1734527603876,4.5026,217.2,217.15,9.47508425]
[1734527605379,4.5026,217.2,217.17,7.17208425]
[1734527606575,2.2,217.2,217.13,2.3033]
[1734527606877,2.2,217.2,217.13,7.17208425]
[1734527607078,7.17208425,217.19,217.09,2.3037]
[1734527607378,7.17208425,217.19,217.1,7.17208425]
[1734527607576,2.3032,217.14,217.09,2.3037]
[1734527607780,2.3032,217.14,217.12,7.17208425]
[1734527608188,2.3031,217.16,217.12,7.17208425]
[1734527609385,2.2,217.18,217.12,7.17208425]
[1734527609587,2.2,217.18,217.14,7.17208425]
[1734527609588,2.3029,217.17,217.14,7.17208425]
[1734527611984,2.303,217.16,217.14,7.17208425]
[1734527614790,2.2,217.18,217.12,7.17208425]
[1734527614984,2.2,217.18,217.11,7.17208425]
[1734527615386,7.17208425,217.16,217.07,1.5583]
[1734527615588,7.17208425,217.16,217.07,8.73038425]
[1734527615992,2.3037,217.1,217.07,8.73038425]
[1734527617295,2.2,217.13,217.09,7.17208425]
[1734527617792,2.3035,217.12,217.09,7.17208425]
[1734527617989,2.2,217.13,217.09,7.17208425]
[1734527618492,2.3034,217.12,217.09,7.17208425]
[1734527622497,2.3034,217.12,217.07,3.8621]
[1734527622694,2.2,217.13,216.93,13.93152126]
[1734527622894,7.17208425,217.07,216.99,7.17208425]
[1734527623095,2.2,217.06,216.99,7.17208425]
[1734527623394,2.3045,217.02,216.99,7.17208425]
[1734527623590,7.17208425,217.05,216.97,12.7310174]
[1734527623792,7.17208425,217.03,216.94,4.7046]
[1734527623993,2.3046,217.01,216.95,7.17208425]
[1734527624189,2.3046,217.01,216.97,7.17208425]
[1734527624394,4.5046,217.01,216.97,7.17208425]
[1734527624591,7.17208425,217.05,216.97,7.17208425]
[1734527624793,2.3045,217.02,216.99,7.17208425]
[1734527625894,2.3046,217.01,216.96,7.17208425]
[1734527627298,9.47668425,217.01,217.0,79.38514]
[1734527627496,9.47668425,217.01,217.0,72.20684]
[1734527627893,9.47668425,217.01,217.0,70.81384]
[1734527628301,7.17208425,217.01,216.87,4.5609]
[1734527628505,7.17208425,216.93,216.87,4.5609]
[1734527628696,7.17208425,216.89,216.83,7.17208425]
[1734527628896,2.3061,216.87,216.83,7.17208425]
[1734527629498,7.17208425,216.91,216.83,7.17208425]
[1734527629802,2.2,216.9,216.87,7.17208425]
[1734527630396,2.3056,216.92,216.87,7.17208425]
[1734527630596,2.2,216.94,216.91,7.17208425]
[1734527631800,2.305,216.98,216.93,7.17208425]
[1734527632008,2.2,216.95,216.93,7.17208425]
[1734527632700,2.305,216.98,216.93,7.17208425]
[1734527632900,2.2,216.98,216.93,7.17208425]
[1734527633603,2.2,217.02,216.95,7.17208425]
[1734527633799,2.2,217.02,216.97,7.17208425]
[1734527634400,2.2,217.02,216.95,7.17208425]
[1734527634802,2.3047,217.0,216.95,7.17208425]
[1734527636397,2.3049,216.98,216.92,2.3055]
[1734527636599,2.3049,216.98,216.93,7.17208425]
[1734527640509,4.5046,217.01,216.95,9.47718425]
[1734527641008,2.3045,217.03,216.97,7.17208425]
[1734527641209,2.2,217.04,216.99,7.17208425]
[1734527641508,4.5043,217.04,216.99,7.17208425]
[1734527641902,2.2,217.05,216.99,8.75058425]
[1734527642102,5.52905245,217.12,217.03,7.17208425]
[1734527642305,7.17208425,217.1,217.03,7.17208425]
[1734527642609,2.2,217.11,217.05,7.17208425]
[1734527642806,7.17208425,217.1,217.03,7.17208425]
[1734527643312,2.3038,217.08,217.03,7.17208425]
[1734527644011,2.3038,217.08,217.02,2.3045]
[1734527644710,2.2,217.11,217.04,2.3042]
[1734527645005,2.2,217.11,217.0,11.21596296]
[1734527645409,2.3037,217.09,217.0,11.21596296]
[1734527645609,5.52905245,217.12,217.03,11.21596296]
[1734527645610,2.2,217.12,217.03,11.21596296]
[1734527646314,2.3036,217.11,217.05,2.3041]
[1734527646501,2.2,217.12,217.03,11.21596296]
[1734527647602,2.3037,217.1,217.05,2.3041]
[1734527647812,2.2,217.12,217.05,2.3041]
[1734527648208,2.2,217.12,217.03,11.21596296]
[1734527648905,2.2,217.12,216.99,5.345]
[1734527648906,2.2,217.12,217.0,11.21596296]
[1734527649512,2.3039,217.08,217.04,2.3042]
[1734527653111,2.2,217.12,217.0,11.21596296]
[1734527653312,2.3038,217.09,217.0,11.21596296]
[1734527653812,2.3038,217.08,217.04,2.3042]
[1734527654009,2.2,217.12,217.03,11.21596296]
[1734527654312,2.3037,217.1,217.05,2.3041]
[1734527654511,2.3037,217.1,217.03,11.21596296]
[1734527655511,2.2,217.12,217.0,11.21596296]
[1734527655717,11.21596296,217.1,216.99,5.345]
[1734527656013,11.21596296,217.1,216.99,3.145]
[1734527656403,11.21596296,217.1,217.01,2.3046]
[1734527656404,2.304,217.07,217.01,2.3046]
[1734527656609,2.2,217.07,217.01,2.3046]
[1734527657215,2.3041,217.06,217.01,2.3046]
[1734527660119,2.3041,217.06,216.99,3.145]
[1734527660309,2.3041,217.06,217.02,2.3044]
[1734527660711,5.60809137,217.15,217.03,11.21596296]
[1734527660913,2.2,217.14,217.03,11.21596296]
[1734527661419,2.3035,217.11,217.03,11.21596296]
[1734527661816,2.2,217.14,217.06,2.304]
[1734527662019,2.2,217.14,217.03,11.21596296]
[1734527662317,2.2,217.14,217.04,2.3042]
[1734527662518,2.3037,217.1,217.04,2.3042]
[1734527663812,2.2,217.14,217.04,2.3042]
[1734527664012,2.3037,217.09,217.04,9.48176155]
[1734527665321,2.2,217.09,217.02,2.3044]
[1734527665522,2.2,217.09,217.02,9.48196155]
[1734527665719,2.2,217.09,217.04,7.17756155]
[1734527665919,2.304,217.07,217.04,7.17756155]
[1734527672130,2.3035,217.11,217.06,7.17756155]
[1734527672327,13.83,217.23,217.1,7.17756155]
[1734527672328,2.2,217.14,217.1,7.17756155]
[1734527672625,2.3034,217.12,217.1,7.17756155]
[1734527672826,2.3034,217.12,217.08,7.17756155]
[1734527673223,2.2,217.14,217.08,7.17756155]
[1734527674422,2.3034,217.12,217.08,7.17756155]
[1734527676932,2.3035,217.11,217.06,9.48156155]
[1734527679235,2.2,217.13,217.06,9.48156155]
[1734527679236,2.3036,217.1,217.06,9.48156155]
[1734527679538,2.3036,217.1,217.08,7.17756155]
[1734527681939,2.3035,217.11,217.08,7.17756155]
[1734527685943,9.37756155,217.13,217.0,5.48108862]
[1734527686138,7.17756155,217.11,217.03,7.17756155]
[1734527686445,2.2,217.13,217.03,7.17756155]
[1734527686747,7.17756155,217.12,217.05,7.17756155]
[1734527687741,2.3038,217.09,217.05,7.17756155]
[1734527691548,9.37756155,217.13,217.04,7.17756155]
[1734527691851,7.17756155,217.11,216.99,5.345]
[1734527692050,2.3042,217.05,217.03,7.17756155]
[1734527692351,7.17756155,217.05,216.98,8.69236155]
[1734527692839,2.2,217.07,216.98,1.5148]
[1734527692840,7.17756155,217.03,216.98,1.5148]
[1734527693044,2.2,217.02,216.91,2.2]
[1734527693245,2.3049,216.98,216.95,7.17756155]
[1734527693553,2.2,217.02,216.95,7.17756155]
[1734527694051,2.3049,216.98,216.95,7.17756155]
[1734527694954,9.37756155,216.97,216.83,2.2]
[1734527695244,7.17756155,216.95,216.83,3.0555]
[1734527695447,2.2,216.94,216.83,3.0555]
[1734527695851,2.2,216.94,216.86,7.17756155]
[1734527696551,2.3057,216.9,216.86,7.17756155]
[1734527697942,2.2,216.94,216.88,7.17756155]
[1734527698146,2.2,216.94,216.9,7.17756155]
[1734527698747,4.5053,216.94,216.9,7.17756155]
[1734527699750,2.3054,216.93,216.9,7.17756155]
[1734527700651,2.2,216.94,216.88,7.17756155]
[1734527701051,2.3058,216.9,216.88,7.17756155]
[1734527701952,7.17756155,216.93,216.83,3.0555]
[1734527702254,7.17756155,216.93,216.85,7.17756155]
[1734527702860,2.306,216.88,216.85,7.17756155]
[1734527703154,2.2,216.88,216.85,7.17756155]
[1734527703556,2.2,216.88,216.83,1.5432]
[1734527703851,2.2,216.88,216.84,7.17756155]
[1734527704455,4.506,216.88,216.84,7.17756155]
[1734527705155,13.83,217.01,216.86,7.17756155]
[1734527705353,7.17756155,216.96,216.9,7.17756155]
[1734527705552,2.2,216.95,216.9,7.17756155]
[1734527705853,2.3053,216.94,216.9,7.17756155]
[1734527706250,2.3049,216.99,216.92,7.17756155]
[1734527706456,2.2,216.98,216.92,7.17756155]
[1734527707159,2.3051,216.97,216.92,7.17756155]
[1734527707357,2.2,216.98,216.94,7.17756155]
[1734527707558,2.2,216.99,216.96,7.17756155]
[1734527708158,2.3046,217.01,216.96,7.17756155]
[1734527708355,4.5046,217.01,216.96,7.17756155]
[1734527708558,2.2,217.01,216.96,7.17756155]
[1734527708857,2.2,217.01,216.98,7.17756155]
[1734527709562,4.5044,217.03,216.98,7.17756155]
[1734527709758,2.2,217.03,216.98,7.17756155]
[1734527710964,2.3045,217.02,216.98,7.17756155]
[1734527713863,2.2,217.03,216.98,7.17756155]
[1734527714065,1.4939,217.09,217.02,7.17756155]
[1734527714066,2.2,217.06,217.02,7.17756155]
[1734527715664,2.2,217.06,217.02,9.48206155]
[1734527715867,2.3039,217.07,217.02,9.48206155]
[1734527715868,4.5039,217.07,217.02,9.48206155]
[1734527716057,2.2,217.07,217.04,7.17756155]
[1734527716256,2.3038,217.09,217.04,7.17756155]
[1734527717564,2.2,217.1,216.98,1.604]
[1734527717761,2.2,217.1,217.05,7.17756155]
[1734527718162,2.2,217.1,217.07,7.17756155]
[1734527720069,2.18,217.12,217.07,9.48146155]
[1734527721769,2.18,217.13,217.07,9.48146155]
[1734527721970,2.18,217.13,217.05,1.5417]
[1734527722268,2.18,217.13,217.08,7.17756155]
[1734527722465,2.18,217.13,217.1,7.17756155]
[1734527722768,2.18,217.13,217.12,7.17756155]
[1734527722968,7.17756155,217.19,217.12,7.17756155]
[1734527722969,52.72,217.2,217.12,9.48096155]
[1734527723169,9.35756155,217.19,217.12,9.48096155]
[1734527723369,7.17756155,217.19,217.12,9.48096155]
[1734527723569,4.4828,217.18,217.12,9.48096155]
[1734527723870,2.18,217.18,217.12,9.48096155]
[1734527724065,2.18,217.18,217.14,7.17756155]
[1734527724271,2.18,217.18,217.16,7.17756155]
[1734527724468,2.3026,217.2,217.16,7.17756155]
[1734527725464,2.18,217.23,217.18,7.17756155]
[1734527725765,2.18,217.26,217.22,7.17756155]
[1734527725973,2.18,217.26,217.24,7.17756155]
[1734527726171,2.3018,217.28,217.24,7.17756155]
[1734527726365,4.4818,217.28,217.24,7.17756155]
[1734527726868,4.4818,217.28,217.22,7.17756155]
[1734527727261,2.3018,217.27,217.22,7.17756155]
[1734527728068,2.3018,217.27,217.21,2.3023]
[1734527729072,2.18,217.28,217.21,2.3023]
[1734527729365,2.3019,217.26,217.21,2.3023]
[1734527730763,2.3019,217.26,217.22,2.3023]
[1734527732071,2.3019,217.26,217.2,1.5809]
[1734527732969,2.3019,217.26,217.21,2.3024]
[1734527733368,38.96864885,217.39,217.22,11.19649056]
[1734527733671,2.18,217.36,217.25,13.49839056]
[1734527733871,2.18,217.36,217.25,11.19649056]
[1734527734069,2.18,217.36,217.27,2.3018]
[1734527734774,34.36734885,217.39,217.3,2.3015]
[1734527735071,34.36734885,217.39,217.28,11.19649056]
[1734527735373,2.18,217.38,217.33,2.3012]
[1734527736468,4.4807,217.38,217.33,2.3012]
[1734527736674,2.18,217.38,217.34,2.301]
[1734527737169,4.4807,217.38,217.31,11.19649056]
[1734527737768,2.3009,217.36,217.3,1.4678]
[1734527738369,2.3009,217.36,217.31,2.3013]
[1734527739866,2.3013,217.32,217.3,1.4678]
[1734527740275,2.18,217.38,217.29,1.5067]
[1734527741164,2.3013,217.32,217.29,1.5067]
[1734527741368,2.18,217.38,217.29,1.5067]
[1734527742271,2.3009,217.37,217.31,2.3014]
[1734527742476,2.3009,217.37,217.31,11.19649056]
[1734527743177,2.18,217.38,217.31,11.19649056]
[1734527743569,52.68,217.47,217.34,11.19649056]
[1734527743776,2.18,217.46,217.34,11.19649056]
[1734527743976,2.18,217.46,217.35,1.4575]
[1734527744280,2.3003,217.42,217.36,2.3008]
[1734527744575,2.3003,217.42,217.35,1.4575]
[1734527744774,2.3,217.44,217.37,11.19649056]
[1734527745370,441.5651896,217.58,217.43,11.19649056]
[1734527745582,441.5651896,217.58,217.47,11.19649056]
[1734527745583,2.18,217.57,217.47,11.19649056]
[1734527745774,2.18,217.57,217.48,1.556]
[1734527746077,7.58076413,217.57,217.48,1.556]